Cogmind - Beta 15 @@@ ROGUE MODE // 2025.06.28 @ 11:43:47 Player: Demo Result: Destroyed by Y-54 Guardian with Gatling Laser Performance ------------- Evolutions (0) 0 Regions Visited (4) 800 Robots Destroyed (45) 225 Value Destroyed (811) 811 Prototype IDs (1) 20 Alien Tech Used (0) 0 Bonus (46) 46 TOTAL SCORE: 1902 Bonus ------- Follower Combat Kills 46 Cogmind --------- Core Integrity 0/250 Matter 70/300 Energy 93/100 System Corruption 0% Temperature Cool (27) Movement Treading (480) Ox4 Location -7/Recycling Parts ------- > --- POWER (1) -------- (None) > --- PROPULSION (2) --- Light Treads > --- UTILITY (2) ------ Huge Storage Unit Core Shielding > --- WEAPON (2) ------- Medium Laser Light Cannon > --- INVENTORY (25) --- Light Treads Compact Wheel Compact Wheel Subdweller Monowheel Subdweller Monowheel Huge Storage Unit Medium Matter Pod (0) Structural Scanner Experimental Sensor Array ECM Suite Weapon Shielding Shield Generator Shield Generator Light Assault Rifle Grenade Launcher Grenade Launcher Makeshift Hammer Peak State ------------ > --- POWER ------------ Light Ion Engine > --- PROPULSION ------- Light Treads Wheel > --- UTILITY ---------- Huge Storage Unit Experimental Sensor Array > --- WEAPON ----------- Battle Rifle Improved Light Cannon > --- INVENTORY -------- Light Ion Engine Light Ion Engine Light Treads Light Treads Wheel Compact Wheel Compact Wheel Subdweller Monowheel Heat Sink Huge Storage Unit Medium Matter Pod Structural Scanner ECM Suite Core Shielding Weapon Shielding Shield Generator Shield Generator Medium Laser Assault Rifle Light Assault Rifle Light Assault Rifle Light Cannon Grenade Launcher Grenade Launcher Makeshift Hammer [Rating: 20] Favorites ----------- Power Light Ion Engine Engine Light Ion Engine Propulsion Light Treads Treads Light Treads Wheel Wheel Utility Huge Storage Unit Device Structural Scanner Storage Huge Storage Unit Protection Core Shielding Weapon Assault Rifle Energy Gun Medium Laser Ballistic Gun Assault Rifle Ballistic Cannon Improved Light Cannon Launcher Grenade Launcher Build | -11 -10 -10 -10 -7 ------- Run | Yrd Mat Min Sub Rec Slots Evolved . | . . . . . Power . | . . . . . Propulsion . | . . . . . Utility . | . . . . . Weapon . | . . . . . Parts Attached 31 | 7 4 6 9 5 Power 4 | 1 . 1 1 1 Engine 4 | 1 . 1 1 1 Core . | . . . . . Reactor . | . . . . . Propulsion 10 | 3 . 3 3 1 Treads 4 | 1 . 1 2 . Leg . | . . . . . Wheel 6 | 2 . 2 1 1 Hover . | . . . . . Flight . | . . . . . Utility 6 | 1 3 . 2 . Device 2 | . 1 . 1 . Storage 3 | 1 2 . . . Processor . | . . . . . Hackware . | . . . . . Protection 1 | . . . 1 . Artifact . | . . . . . Weapon 11 | 2 1 2 3 3 Energy Gun 1 | . . . . 1 Energy Cannon . | . . . . . Ballistic Gun 6 | 2 . 2 1 1 Ballistic Cannon 3 | . 1 . 1 1 Launcher 1 | . . . 1 . Special Weapon . | . . . . . Impact Weapon . | . . . . . Slashing Weapon . | . . . . . Piercing Weapon . | . . . . . Special Melee Weapon . | . . . . . Unidentified Prototypes 1 | . . . 1 . Parts Lost 16 | . . 6 2 8 Power 4 | . . 1 1 2 Propulsion 6 | . . 3 1 2 Utility . | . . . . . Weapon 6 | . . 2 . 4 Highest Loss Streak 5 | . . 5 2 4 To Critical Strikes . | . . . . . Average Backups 21 | . 19 22 24 19 Power 1 | . . 1 1 . Propulsion 4 | . 4 3 6 5 Utility 8 | . 7 10 8 8 Weapon 6 | . 6 6 7 6 Tool/Special . | . . . . . Unused Backups 21 | . 4 3 2 12 Power 1 | . . 1 . . Propulsion 3 | . . . . 3 Utility 13 | . 3 2 2 6 Weapon 4 | . 1 . . 3 Tool/Special . | . . . . . Average Slot Usage (%) 98 | . 99 99 99 88 Engine 12 | . 14 13 13 3 Treads 14 | . 14 14 15 17 Wheel 13 | . 14 14 12 10 Device 10 | . 12 14 7 . Storage 14 | . 15 14 14 14 Protection 2 | . . . 6 14 Ballistic Gun 23 | . 22 26 15 26 Ballistic Cannon 3 | . 5 1 7 . Launcher 1 | . . . 5 . Peak Build Rating 20 | 6 10 10 20 11 Average Rating 10 | 4 8 9 15 9 On Entrance 7 | . 6 10 10 11 Naked Turns . | . . . . . Heaviest Build 92 | 14 92 92 90 87 Greatest Support 40 | 26 10 10 40 40 Greatest Overweight (x) 9 | 1 9 9 8 8 Average Overweight (x) 6 | . 6 8 7 4 Largest Inventory Capacity 25 | 8 25 25 25 25 Average Capacity 24 | 7 22 25 25 25 Most Carried 25 | 1 25 25 25 23 Average Carried 21 | . 19 22 24 19 Final Capacity 25 | 8 25 25 25 25 Final Carried 24 | 1 24 24 23 17 Class Distribution -------------------- 100% | Mutant Dominant Class ---------------- Mutant | -10/Materials Mutant | -10/Mines Mutant | -10/Subcaves Mutant | -7/Recycling Resources | -11 -10 -10 -10 -7 ----------- Run | Yrd Mat Min Sub Rec Matter Collected 1660 | 192 619 444 271 134 Remotely . | . . . . . Salvage Created 1279 | . 811 235 110 123 Parts 76 | . 43 23 8 2 Haulers Intercepted 2 | . 2 . . . Recyclers Shooed 1 | . 1 . . . Parts Field Recycled . | . . . . . Retrieved Matter . | . . . . . Parts Self-Destructed 6 | . . . 6 . Prevented . | . . . . . Kills | -11 -10 -10 -10 -7 ------- Run | Yrd Mat Min Sub Rec Combat Hostiles Destroyed 31 | . 15 9 6 1 Guns 27 | . 12 9 5 1 Cannons 4 | . 3 . 1 . Classes Destroyed 11 | . 7 1 2 1 Worker 2 | . 1 1 . . Builder 2 | . 2 . . . Tunneler 2 | . . 2 . . Hauler 2 | . 2 . . . Recycler 3 | . 2 . . 1 Turret 2 | . . . 2 . Watcher 1 | . 1 . . . Swarmer 18 | . 6 8 4 . Grunt 11 | . 9 1 1 . Sentry 1 | . . . . 1 Subdweller 1 | . . . 1 . Best Kill Streak 5 | . 5 3 4 2 Combat Bots Only 5 | . 5 3 4 1 Max Kills in Single Turn 1 | . 1 1 1 1 Gunslinging . | . . . . . Exploded . | . . . . . Melee . | . . . . . Uniques/NPCs Destroyed . | . . . . . Combat | -11 -10 -10 -10 -7 -------- Run | Yrd Mat Min Sub Rec Hostile Shots Fired 314 | . 65 49 53 147 Missed 102 | . 15 10 16 61 Hits 212 | . 50 39 37 86 Projectile 212 | . 50 39 37 86 Critical Strikes 1 | . 1 . . . Damage Taken 1980 | . 478 333 529 640 Core 255 | . 27 42 93 93 Absorbed by Shields . | . . . . . Redirected to Shielding 26 | . . . 4 22 Core Remaining (%) 100 | 100 . . . . Volleys Fired 162 | . 66 32 44 20 Largest 2 | . 2 2 2 2 Hottest 80 | . 53 53 58 80 Shots Fired 288 | . 129 62 58 39 Gun 192 | . 94 55 14 29 Cannon 66 | . 35 7 16 8 Launcher 30 | . . . 28 2 Special . | . . . . . Kinetic 256 | . 129 62 30 35 Thermal 2 | . . . . 2 Explosive 30 | . . . 28 2 Electromagnetic . | . . . . . Robot Hit Streak 10 | . 9 3 5 10 Robot Miss Streak 9 | . 9 5 3 2 Penetration Max . | . . . . . Secondary Targets 3 | . 1 2 . . Max Gunslinging Chain 1 | . 1 1 . . Shots Hit Robots 144 | . 69 27 18 30 Core Hits 78 | . 31 12 24 11 Critical Kills 1 | . . 1 . . Critical Parts Destroyed . | . . . . . Critical Strikes 3 | . 1 2 . . Destroy 1 | . . 1 . . Blast 2 | . 1 1 . . Melee Attacks . | . . . . . Impact . | . . . . . Slashing . | . . . . . Piercing . | . . . . . Sneak Attacks . | . . . . . Combat Hostiles . | . . . . . Follow-up Attacks . | . . . . . Damage Inflicted 2252 | . 1029 385 470 368 Guns 1449 | . 727 364 152 206 Cannons 564 | . 302 21 108 133 Explosions 239 | . . . 210 29 Melee . | . . . . . Ramming . | . . . . . Kinetic 1988 | . 1029 385 260 314 Thermal 25 | . . . . 25 Explosive 239 | . . . 210 29 Electromagnetic . | . . . . . Impact . | . . . . . Slashing . | . . . . . Piercing . | . . . . . Highest Corruption . | . . . . . Average Corruption . | . . . . . Corruption Purged . | . . . . . Corruption Blocked . | . . . . . Overload Shots . | . . . . . Overflow Damage 46 | . 8 . 38 . Projectiles 8 | . 8 . . . Explosions 38 | . . . 38 . Melee . | . . . . . Knockbacks 6 | . 4 1 1 . Impact . | . . . . . Kinetic 6 | . 4 1 1 . Secondary . | . . . . . Self-Inflicted Damage 87 | . . . 87 . Shots 4 | . . . 4 . Rammed . | . . . . . Targets Rammed . | . . . . . Kicked . | . . . . . Crushed . | . . . . . Highest Temperature 21 | . 21 . . 21 Average Temperature 10 | . 11 . . 10 Received Heat Transfer 444 | . 144 9 87 204 Siege Activations . | . . . . . Martial Activations . | . . . . . Shielding Activations . | . . . . . Robots Disrupted . | . . . . . Combat Hostiles . | . . . . . Robots Corrupted . | . . . . . Combat Hostiles . | . . . . . Parts Fried . | . . . . . Impact Corruptions . | . . . . . Robots Melted . | . . . . . Combat Hostiles . | . . . . . Parts Melted . | . . . . . Heat Transferred 74 | . . . . 74 Parts Sabotaged . | . . . . . Parts Stolen . | . . . . . Parts Stripped . | . . . . . Power Chain Reactions . | . . . . . Alert | -11 -10 -10 -10 -7 ------- Run | Yrd Mat Min Sub Rec Maximum Alert Level 1 | . 1 . . 1 Low Security (%) 90 | 100 76 100 . 92 Level 1 9 | . 23 . . 7 Level 2 . | . . . . . Level 3 . | . . . . . Level 4 . | . . . . . Level 5 . | . . . . . High Security . | . . . . . Max Security . | . . . . . Peak Influence 275 | . 275 136 . 221 Initial 216 | . . 97 . 216 Average 70 | . 68 55 . 132 Influence Increases 1625 | . 516 415 630 64 Destroy 0b10 Robot/C 720 | . 300 260 140 20 Destroy 0b10 Robot/NC 60 | . 40 15 . 5 Destroy Leader 136 | . 86 40 10 . Allied During Kill 9 | . . 9 . . Successful Hack 21 | . 21 . . . Select Force Hacks 30 | . . . . 30 Destroy Structure 19 | . 9 1 . 9 Lose Combat Pursuer 630 | . 60 90 480 . Influence Decreases 1623 | . 266 665 178 514 Entered New Map 389 | . . 153 . 236 Time Decay 1054 | . 266 432 158 198 Lost Part 160 | . . 60 20 80 Lost Ally 20 | . . 20 . . Squads Dispatched 5 | . 5 . . . Investigation 2 | . 2 . . . Extermination . | . . . . . Reinforcement 3 | . 3 . . . Assault . | . . . . . Garrison . | . . . . . Intercept . | . . . . . Searches Triggered . | . . . . . Construction Impeded . | . . . . . Haulers Reinforced . | . . . . . Active Scanning Responses . | . . . . . Cargo Convoy Interrupts . | . . . . . Stealth | -11 -10 -10 -10 -7 --------- Run | Yrd Mat Min Sub Rec Distress Signals 2 | . 2 . . . Communications Jammed . | . . . . . Distress Signals . | . . . . . Times Spotted 57 | . 24 19 12 2 Peak Tracking Total 5 | . 5 3 4 1 Tactical Retreats 12 | . 2 5 5 . Traps | -11 -10 -10 -10 -7 ------- Run | Yrd Mat Min Sub Rec Traps Triggered 3 | . 1 . 2 . Indirectly . | . . . . . Trap Hack Attempts . | . . . . . Triggered . | . . . . . Disarmed . | . . . . . Reprogrammed . | . . . . . Reused . | . . . . . Traps Extracted . | . . . . . Installed . | . . . . . Triggered . | . . . . . Machines | -11 -10 -10 -10 -7 ---------- Run | Yrd Mat Min Sub Rec Machines Disabled 3 | . . . 3 . Max in Single Turn 1 | . . . 1 . Machines Repaired . | . . . . . Machines Dismantled . | . . . . . Machines Sabotaged . | . . . . . Overloaded Fab Kills . | . . . . . Hacking | -11 -10 -10 -10 -7 --------- Run | Yrd Mat Min Sub Rec Machines Accessed 8 | . 5 . . 3 Terminals 6 | . 5 . . 1 Fabricators . | . . . . . Repair Stations . | . . . . . Recycling Units 2 | . . . . 2 Scanalyzers . | . . . . . Garrison Access . | . . . . . Total Hacks 29 | . 21 . . 8 Successful 13 | . 8 . . 5 Failed 16 | . 13 . . 3 Catastrophic 2 | . 1 . . 1 Database Lockouts . | . . . . . Manual 16 | . 15 . . 1 Terminals 23 | . 21 . . 2 Fabricators . | . . . . . Repair Stations . | . . . . . Recycling Units 6 | . . . . 6 Scanalyzers . | . . . . . Garrison Access . | . . . . . Terminal Hacks 3 | . 3 . . . Robot Analysis 1 | . 1 . . . Branch Access Points 1 | . 1 . . . Zone Layout 1 | . 1 . . . Fabricator Hacks . | . . . . . Repair Station Hacks . | . . . . . Recycling Unit Hacks 4 | . . . . 4 Process 1 | . . . . 1 Retrieve Matter 2 | . . . . 2 Retrieve Components 1 | . . . . 1 Scanalyzer . | . . . . . Garrison Access Hacks . | . . . . . Unauthorized Hacks 6 | . 5 . . 1 Terminals 5 | . 5 . . . Botnet 5 | . 5 . . . Fabricators . | . . . . . Repair Stations . | . . . . . Recycling Units 1 | . . . . 1 Tunnel 1 | . . . . 1 Scanalyzers . | . . . . . Garrison Access . | . . . . . Data Cores Recovered . | . . . . . Used . | . . . . . Hacking Detections 7 | . 5 . . 2 Full Trace Events 2 | . 1 . . 1 Feedback Events . | . . . . . Feedback Blocked . | . . . . . Robot Schematics Acquired . | . . . . . Robots Built . | . . . . . Authchips . | . . . . . Time . | . . . . . Total Robot Build Rating . | . . . . . Part Schematics Acquired . | . . . . . Parts Built . | . . . . . Authchips . | . . . . . Time . | . . . . . Total Part Build Rating . | . . . . . Parts Repaired . | . . . . . Time . | . . . . . Parts Recycled . | . . . . . Recycled Matter 6 | . . . . 6 Retrieved Matter 6 | . . . . 6 Retrieved Components 1 | . . . . 1 Parts Scanalyzed . | . . . . . Part Schematics Acquired . | . . . . . Parts Damaged . | . . . . . Bothacking | -11 -10 -10 -10 -7 ------------ Run | Yrd Mat Min Sub Rec Used RIF Installer . | . . . . . Robots Hacked . | . . . . . Non-combat . | . . . . . Combat . | . . . . . Robot Hacks Applied . | . . . . . Relay Couplers Released . | . . . . . Fabnet Peak Effective % . | . . . . . Robots Rewired . | . . . . . Allies Hacked . | . . . . . Hacks Repelled . | . . . . . Allies | -11 -10 -10 -10 -7 -------- Run | Yrd Mat Min Sub Rec Total Allies 2 | . . 2 . . Largest Group 1 | . . 1 . . Highest-Rated Group 31 | . . 31 . . Highest-Rated Ally 31 | . . 31 . . Total Orders . | . . . . . Ally Attacks 17 | . . 17 . . Total Damage 190 | . . 190 . . Kills 4 | . . 4 . . Allies Corrupted . | . . . . . Allies Melted . | . . . . . Intel | -11 -10 -10 -10 -7 ------- Run | Yrd Mat Min Sub Rec Active Infowar (turns) 2705 | . 971 1357 377 . Sensors 331 | . . . 331 . Structural 2374 | . 971 1357 46 . Robot Analysis Total 1 | . 1 . . . Derelict Logs Recovered 1 | . . 1 . . Drone Launches . | . . . . . Drone Recoveries . | . . . . . Exploration | -11 -10 -10 -10 -7 ------------- Run | Yrd Mat Min Sub Rec Turns Passed 3673 | 56 1103 1357 741 416 Spaces Moved 1602 | 49 478 613 283 179 Core 8 | 8 . . . . Treads 47 | . . . 21 26 Legs . | . . . . . Wheels 1547 | 41 478 613 262 153 Hover . | . . . . . Flight . | . . . . . Fastest Speed 50 | 50 95 200 200 175 Average Speed 192 | 85 179 200 208 196 Slowest Speed 320 | 95 215 215 320 320 Overloaded Moves . | . . . . . Propulsion Burnouts . | . . . . . Robots Hopped . | . . . . . Potential Cave-ins . | . . . . . Cave-ins Triggered . | . . . . . Exploration Rate (%) 44 | 4 77 96 15 29 Regions Visited 4 Branch Regions 3 Pre-discovered Areas 2 | . . 1 . 1 Known Exits Taken 1 | . 1 . . . Unknown Exits Taken 3 | 1 . 1 1 . Scrap Searched 1 | . . 1 . . Spaces Dug 1 | . 1 . . . Terrain Destroyed 62 | . 3 1 45 13 Melee . | . . . . . Projectile 6 | . 3 1 1 1 AOE 56 | . . . 44 12 Terrain Rammed . | . . . . . Walls Destroyed . | . . . . . Machines Disabled . | . . . . . Actions | -11 -10 -10 -10 -7 --------- Run | Yrd Mat Min Sub Rec Total 1912 | 59 595 680 371 207 Wait 55 | 2 12 16 25 . Move 1598 | 48 477 612 282 179 Hop . | . . . . . Pick Up 44 | 1 29 10 4 . Fast Attach 8 | 7 1 . . . Attach 15 | . 1 6 2 6 Detach . | . . . . . Swap 14 | . 2 . 10 2 Drop 16 | 1 7 4 4 . Fire 162 | . 66 32 44 20 Melee . | . . . . . Ram . | . . . . . Kick . | . . . . . Crush . | . . . . . Escape Stasis . | . . . . . Rewire . | . . . . . Trap . | . . . . . Miscellaneous . | . . . . . Route ------- -11/Scrapyard -10/Materials (discovered 5 exits: [*Mat x3] / *Min x2) -10/Mines (discovered 3 exits: [*Mat x2] / [*Sub]) -10/Subcaves (discovered 2 exits: [*Mat] / *Rec) -7/Recycling History --------- Turn | Location | Event 8 | -11/Scrapyard | Discovered new exit (range 15) 57 | -11/Scrapyard | Entered Materials 293 | -10/Materials | Discovered new exit (range 5) 308 | -10/Materials | Build established: Mutant 575 | -10/Materials | Identified exit to Mines 641 | -10/Materials | Discovered new exit (range 4) 929 | -10/Materials | Discovered new exit (range 15) 1160 | -10/Materials | Entered Mines 1191 | -10/Mines | Met a Derelict bent on vengeance 1292 | -10/Mines | Lost 5 parts (1p2n2w) 1430 | -10/Mines | Escorted by a lone wolf Derelict 1461 | -10/Mines | Discovered new exit (range 10) 1472 | -10/Mines | Discovered new exit (range 10) 1840 | -10/Mines | Found a damaged Exp. Sensor Array with a note attached 1844 | -10/Mines | Found Prototype Device 1880 | -10/Mines | Received a Mining Laser from a helpful Derelict 1965 | -10/Mines | Discovered new exit (range 6) 2154 | -10/Mines | Learned location of Zion (-7) 2517 | -10/Mines | Entered Subcaves 2519 | -10/Subcaves | Shifting Twisted Machinery released Sub. Monowheel 2552 | -10/Subcaves | Shifting Twisted Machinery released Mak. Hammer 2563 | -10/Subcaves | Identified Exp. Sensor Array 2696 | -10/Subcaves | Discovered new exit (range 16) 2992 | -10/Subcaves | Ambushed by Subdweller buried in earth 3082 | -10/Subcaves | Core integrity fell below 50% 3086 | -10/Subcaves | Discovered new exit (range 12) 3258 | -10/Subcaves | Entered Recycling 3290 | -7/Recycling | Core integrity fell below 20% 3326 | -7/Recycling | Lost 4 parts (1p1n2w) 3674 | -7/Recycling | Destroyed by Y-54 Guardian with Gatling Laser Last Messages --------------- 03348_ Current location identified: Recycling >>Retrieve(Components) Retrieving 1 components... Imp. Titanium Leg >>Force(Tunnel) DISCOVERED[-4/Armory] 03359_ The unstable cave ceiling collapses. 03372_ Connecting with Terminal... 03402_ Connecting with Recycling Unit... >>Recycling(Process) Analyzing inventory... Recycling at 100% efficiency: Core Analyzer (6) >>Retrieve(Matter) Matter ejected: 6 03658_ Y-54 Guardian springs to life. 03661_ Lgt. Assault Rifle destroyed. 03668_ Assault Rifle destroyed. 03671_ Lgt. Treads destroyed. 03671_ Lgt. Ion Engine destroyed. Map ----- +----------------------------------------------------+ | | | | | | | | | | | | | | | | | ?????????????????????????????????????????????????? | | ?????????????????????????????????????????????????? | | ?????????????????????????????????????????????????? | | ?????????????????????????????????????????????????? | | ?????????????????????????????????????????????????? | | ?????????????????????????????????????????????????? | | ?????????????????????????????????????????????????? | | ?????????????????????????????????????????????????? | | ?????????????????????????????????????????????????? | | ?????????????????????????????????????????????????? | | ?????????????????????????????????????????????????? | | ?????????????????????????????????????????????????? | | ?????????????????????????????????????????????????? | | ?????????????????????????????????????????????????? | | ?????????????????????????????????????????????????? | | ???????????????????????##????????????????????????? | | ?????????????????????# #Y###########?????????????? | | ?????????????????????#%% @ #??#########??# | | ?????????????????????####### ##### #??# ?? | | ???????????????????????????# #???# #??# | | ?????????????###????###????#+#???# #??# """"" | | ?????????????? ? ? ????# #??# """"" | | ?????????????? ????# #??# """"" | | ?????#####?#? """ """ """ """ ???# #??# | | ?????# #?# """ """ """ """ #??# #??# """"" | | ?????# #??? """ """ """ """ #### #### """"" | | ?????# #????? + + """"" | | ?????# #??????? #### #### | | ???### #????????? ?????????# #??# | | ???#"" ############+############ #??# | | ???#"Y = #######+####+## | | ???#"" #?# #? | | ???### #?# #? | | ?????# """"" #?# #? | | ?????### # """"" ####" ### ##?# ## | | ???????# """"" ##"Y"#### #???"T#?# #??# == | | ???????## #"" ##"""#??# #????##?# #??# == | | ???????# ##"" ######??#+#???????#+#??# == | | ???????####"" """"" #??????????????????????# ## | | ??????????#T """"" #??????????????????????# #? | | ??????????#"" """"" +??????????????????????# #? | | ??????????#"" #??????????????????????# #? | +----------------------------------------------------+ Best States ------------- Heat Dissipation 25 Energy Generation 10 Energy Capacity 250 Matter Stores 300 Matter Capacity 300 Sight Range 16 Robot Scan Range 20 Terrain Scan Density 10 Core Shielding 20 Evasion (%) 42 Recoil Reduction 2 Item Schematics ----------------- None Robot Schematics ------------------ None Fabricated ------------ Nothing Repaired ---------- Nothing Alien Tech Used ----------------- None Achievements -------------- None Challenges ------------ None Game ------ Seed TripodFissionPick Manual? 0 Play Time 00:15:49 Cumulative 310.3 hours Start 2025.06.28 @ 11:29:53 End 2025.06.28 @ 11:43:47 Sessions 1 Manual Loads 0 Difficulty Rogue Special Mode None Game No. 274 Rogue 274 Adventurer 0 Explorer 0 Win Type - Total 2 Types 1/1/0/0/0/0/0/0/0/0 Lore% 77 Gallery% 80 Achievement% 72 Wizard Run 0 Options --------- Layout 1 ASCII 0 Keyboard 0 Movement Numpad Keybinds 0 Fullscreen 1 Font 24/Smallcaps Map View 50x35 Zoom Use 0% Tactical HUD 1 Map Filters NONE Filters NONE Steam 1 RUN: b53cbe94-d4f3-46ad-b0a0-4888f2fe41e1